bitfinex-derivatives/quotes_BNBF0:USTF0_20260114
["timestamp","ask_amount","ask_price","bid_price","bid_amount"]
[1768403349516,1.598,940.25,939.01,2.5741607]
[1768403349914,1.598,940.25,939.0,2.5741607]
[1768403351512,1.598,940.25,938.99,2.5741607]
[1768403352717,0.00886994,941.19,938.99,2.5741607]
[1768403353214,0.18478056,942.94,938.99,2.5741607]
[1768403353717,0.0121562,942.13,938.99,2.5741607]
[1768403353919,0.18478056,942.94,938.99,2.5741607]
[1768403354617,0.18478056,942.94,938.98,2.5741607]
[1768403355118,0.18478056,942.94,938.99,2.5741607]
[1768403355414,0.18478056,942.94,938.84,2.5741607]
[1768403356017,3.7132233,942.92,938.84,2.5741607]
[1768403356613,3.7132233,942.92,938.76,2.5741607]
[1768403356819,1.183,942.91,938.76,2.5741607]
[1768403357113,3.7132233,942.84,938.76,2.5741607]
[1768403359518,3.7132233,942.84,938.71,2.5741607]
[1768403360214,3.7132233,942.78,938.71,2.5741607]
[1768403360615,3.7132233,942.78,938.72,2.5741607]
[1768403361013,3.7132233,942.77,938.72,2.5741607]
[1768403361520,3.7132233,942.77,938.64,2.5741607]
[1768403362022,3.7132233,942.77,938.6,2.5741607]
[1768403362220,3.7132233,942.61,938.6,2.5741607]
[1768403362519,3.7132233,942.61,938.61,2.5741607]
[1768403363018,3.7132233,942.61,938.63,2.5741607]
[1768403363621,3.7132233,942.61,938.67,2.5741607]
[1768403364522,3.7132233,942.61,938.69,2.5741607]
[1768403365117,3.7132233,942.59,938.69,2.5741607]
[1768403365518,3.7132233,942.59,938.72,2.5741607]
[1768403366319,3.7132233,942.57,938.72,2.5741607]
[1768403366623,3.7132233,942.57,938.78,2.5741607]
[1768403367226,3.7132233,942.66,938.8,2.5741607]
[1768403367724,3.7132233,942.66,938.92,2.5741607]
[1768403368321,3.7132233,942.65,938.92,2.5741607]
[1768403368819,3.7132233,942.65,938.95,2.5741607]
[1768403369321,3.7132233,942.54,938.86,2.5741607]
[1768403369526,3.7132233,942.54,938.77,2.5741607]
[1768403369723,3.7132233,942.54,938.62,2.5741607]
[1768403370228,3.7132233,942.54,938.59,2.5741607]
[1768403370519,3.7132233,942.25,938.59,2.5741607]
[1768403370918,3.7132233,942.25,938.58,0.18495783]
[1768403371520,3.7132233,942.22,938.58,0.18495783]
[1768403372520,3.7132233,942.19,938.58,0.18495783]
[1768403373422,3.7132233,942.2,938.58,0.18495783]
[1768403374524,3.7132233,942.21,938.58,0.18495783]
[1768403375721,3.7132233,942.22,938.58,0.18495783]
[1768403376727,3.7132233,942.23,938.58,0.18495783]
[1768403377630,3.7132233,942.24,938.58,0.18495783]
[1768403378929,3.7132233,942.34,938.58,0.18495783]
[1768403379825,3.7132233,942.37,938.58,0.18495783]
[1768403380731,3.7132233,942.38,938.58,0.18495783]
[1768403381628,1.78,942.37,938.65,2.5741607]
[1768403382230,1.78,942.37,938.69,2.5741607]
[1768403382733,1.78,942.37,938.68,2.5741607]
[1768403383930,1.78,942.37,938.69,2.5741607]
[1768403384334,1.78,942.37,938.73,2.5741607]
[1768403384834,1.78,942.37,938.81,2.5741607]
[1768403385336,1.78,942.37,938.82,2.5741607]
[1768403386338,1.78,942.37,938.83,2.5741607]
[1768403388039,1.78,942.37,939.05,2.5741607]
[1768403388439,1.78,942.37,939.07,2.5741607]
[1768403389039,1.78,942.37,939.05,2.5741607]
[1768403391736,0.7539771,942.36,939.07,2.5741607]
[1768403392042,0.7539771,942.35,939.07,2.5741607]
[1768403392239,0.7539771,942.34,939.07,2.5741607]
[1768403392440,0.7539771,942.33,939.07,2.5741607]
[1768403392640,0.7539771,942.32,939.07,2.5741607]
[1768403392846,0.7539771,942.31,939.07,2.5741607]
[1768403393146,0.7539771,942.3,939.1,2.5741607]
[1768403393344,0.7539771,942.29,939.1,2.5741607]
[1768403393542,0.7539771,942.28,939.1,2.5741607]
[1768403393746,0.7539771,942.27,939.2,2.5741607]
[1768403394045,0.7539771,942.26,939.2,2.5741607]
[1768403394240,0.7539771,942.25,939.29,2.5741607]
[1768403394442,0.7539771,942.24,939.29,2.5741607]
[1768403394643,0.18487382,942.01,939.29,2.5741607]
[1768403394844,0.7539771,942.0,939.32,2.5741607]
[1768403395144,0.7539771,941.99,939.32,2.5741607]
[1768403395440,0.7539771,941.98,939.36,2.5741607]
[1768403395640,0.7539771,941.97,939.36,2.5741607]
[1768403395942,0.7539771,941.96,939.35,2.5741607]
[1768403396141,0.7539771,941.95,939.35,2.5741607]
[1768403396341,0.7539771,941.94,939.36,2.5741607]
[1768403396544,0.7539771,941.93,939.36,2.5741607]
[1768403396743,0.7539771,941.92,939.38,2.5741607]
[1768403396941,0.7539771,941.91,939.38,2.5741607]
[1768403397147,0.7539771,941.9,939.38,2.5741607]
[1768403397346,0.7539771,941.89,939.51,2.5741607]
[1768403397546,0.7539771,941.88,939.51,2.5741607]
[1768403397844,0.7539771,941.87,939.55,2.5741607]
[1768403398047,0.7539771,941.86,939.55,2.5741607]
[1768403398243,0.7539771,941.85,939.55,2.5741607]
[1768403398443,0.7539771,941.84,939.53,2.5741607]
[1768403398642,0.7539771,941.83,939.53,2.5741607]
[1768403398842,0.7539771,941.82,939.53,2.5741607]
[1768403399043,0.7539771,941.81,939.53,2.5741607]
[1768403399244,0.7539771,941.8,939.53,2.5741607]
[1768403399447,0.7539771,941.79,939.5,2.5741607]
[1768403399646,0.7539771,941.78,939.5,2.5741607]
[1768403399944,0.7539771,941.77,939.5,2.5741607]
[1768403400144,0.7539771,941.76,939.5,2.5741607]
[1768403400344,0.7539771,941.75,939.5,2.5741607]
[1768403400645,0.7539771,941.74,939.5,2.5741607]
[1768403400946,0.7539771,941.73,939.5,2.5741607]
[1768403401143,0.7539771,941.72,939.5,2.5741607]
[1768403401447,0.7539771,941.71,939.47,2.5741607]
[1768403401646,0.18485614,942.32,939.47,2.5741607]
[1768403401647,0.7539771,941.7,939.47,2.5741607]
[1768403401847,0.7539771,941.69,939.47,2.5741607]
[1768403402146,0.7539771,941.68,939.47,2.5741607]
[1768403402345,0.7539771,941.67,939.47,2.5741607]
[1768403402544,0.7539771,941.66,939.43,2.5741607]
[1768403402743,0.7539771,941.65,939.43,2.5741607]
[1768403402942,0.18485614,942.32,939.43,2.5741607]
[1768403402943,0.7539771,941.64,939.43,2.5741607]
[1768403403144,0.7539771,941.63,939.43,2.5741607]
[1768403403343,0.7539771,941.62,939.43,2.5741607]
[1768403403543,0.7539771,941.61,939.34,2.5741607]
[1768403403746,0.7539771,941.6,939.34,2.5741607]
[1768403403943,0.7539771,941.59,939.34,2.5741607]
[1768403404145,0.7539771,941.58,939.34,2.5741607]
[1768403404345,0.7539771,941.57,939.34,2.5741607]
[1768403404549,0.7539771,941.56,939.32,2.5741607]
[1768403404750,0.7539771,941.55,939.32,2.5741607]
[1768403404945,0.7539771,941.54,939.32,2.5741607]
[1768403405151,0.7539771,941.53,939.32,2.5741607]
[1768403405348,0.7539771,941.52,939.32,2.5741607]
[1768403405549,0.7539771,941.51,939.32,2.5741607]
[1768403405748,0.7539771,941.5,939.31,2.5741607]
[1768403405950,0.7539771,941.49,939.31,2.5741607]
[1768403406249,0.7539771,941.48,939.31,2.5741607]
[1768403406451,0.7539771,941.47,939.31,2.5741607]
[1768403406653,0.18485614,942.32,939.29,2.5741607]
[1768403406854,0.75027396,942.31,939.29,2.5741607]
[1768403407049,0.75027396,942.3,939.29,2.5741607]
[1768403407253,0.75027274,942.29,939.29,2.5741607]
[1768403407452,0.75025161,942.28,939.15,0.18487382]
[1768403407653,0.75025161,942.27,939.15,0.18487382]
[1768403407850,0.75025161,942.26,939.15,0.18487382]
[1768403408154,0.75025161,942.25,939.15,0.18487382]
[1768403408657,2.62025161,942.24,939.15,0.18487382]
[1768403408955,0.75025161,942.23,939.15,0.18487382]
[1768403409155,0.75025161,942.22,939.15,0.18487382]
[1768403409456,0.75025161,942.21,939.15,0.18487382]
[1768403409655,0.75025161,942.2,939.15,0.18487382]
[1768403409855,0.75025161,942.19,939.15,0.18487382]
[1768403410055,0.75025161,942.18,939.15,0.18487382]
[1768403410256,0.75025161,942.17,939.15,0.18487382]
[1768403410556,0.75025161,942.16,939.15,0.18487382]
[1768403410753,0.75025161,942.15,939.15,0.18487382]
[1768403411057,0.75025161,942.14,939.15,0.18487382]
[1768403411256,0.75025161,942.13,939.15,0.18487382]
[1768403411551,0.75025161,942.12,939.15,0.18487382]
[1768403411757,0.75025161,942.11,939.15,0.18487382]
[1768403411952,0.75025161,942.1,939.15,0.18487382]
[1768403412156,0.75025161,942.09,939.15,0.18487382]
[1768403412354,0.75025161,942.08,939.15,0.18487382]
[1768403412557,0.75025161,942.07,939.15,0.18487382]
[1768403412855,0.75025161,942.06,939.15,0.18487382]
[1768403413052,0.75025161,942.05,939.15,0.18487382]
[1768403413258,0.75025161,942.04,939.15,0.18487382]
[1768403413458,0.75025161,942.03,939.15,0.18487382]
[1768403413654,0.75025161,942.02,939.15,0.18487382]
[1768403413855,0.75025161,942.01,939.15,0.18487382]
[1768403414156,0.75025161,942.0,939.15,0.18487382]
[1768403414359,0.75025161,941.99,939.15,0.18487382]
[1768403414560,0.75025161,941.98,939.15,0.18487382]
[1768403414763,0.75025161,941.97,939.15,0.18487382]
[1768403414957,0.75025161,941.96,939.15,0.18487382]
[1768403415157,0.75025161,941.95,939.15,0.18487382]
[1768403415360,0.75025161,941.94,939.15,0.18487382]
[1768403415658,0.75025161,941.93,939.15,0.18487382]
[1768403415858,0.75025161,941.92,939.15,0.18487382]
[1768403416058,0.75025161,941.91,939.15,0.18487382]
[1768403416259,0.75025161,941.9,939.15,0.18487382]
[1768403416458,0.75025161,941.89,939.15,0.18487382]
[1768403416758,0.75048022,941.88,939.15,0.18487382]
[1768403416957,0.75048022,941.87,939.15,0.18487382]
[1768403417161,0.75048022,941.86,939.15,0.18487382]
[1768403417456,0.75048022,941.85,939.15,0.18487382]
[1768403417656,0.75048022,941.84,939.15,0.18487382]
[1768403417861,0.75067492,941.83,939.15,0.18487382]
[1768403418160,0.75067492,941.82,939.15,0.18487382]
[1768403418360,0.75067492,941.81,939.15,0.18487382]
[1768403418560,0.75067492,941.8,939.15,0.18487382]
[1768403418758,0.75067492,941.79,939.15,0.18487382]
[1768403418956,0.75067492,941.78,939.15,0.18487382]
[1768403419156,0.75067492,941.77,939.15,0.18487382]
[1768403419360,0.75067492,941.76,939.18,2.5741607]
[1768403419564,0.75067492,941.75,939.18,2.5741607]
[1768403419763,0.75067492,941.74,939.18,2.5741607]
[1768403420063,0.75067492,941.73,939.18,2.5741607]
[1768403420260,0.75067492,941.72,939.18,2.5741607]
[1768403420563,0.75067492,941.71,939.38,2.5741607]
[1768403420759,0.75067492,941.7,939.38,2.5741607]
[1768403420959,0.75067492,941.69,939.39,2.5741607]
[1768403421160,0.75067492,941.68,939.39,2.5741607]
[1768403421360,0.75067492,941.67,939.48,2.5741607]
[1768403421562,0.75067492,941.66,939.48,2.5741607]
[1768403421760,0.75067492,941.65,939.48,2.5741607]
[1768403421961,0.75067492,941.64,939.49,2.5741607]
[1768403422166,0.75067492,941.63,939.49,2.5741607]
[1768403422469,0.75054444,941.62,939.5,2.5741607]
[1768403422761,0.75054444,941.61,939.5,2.5741607]
[1768403422963,0.75054444,941.6,939.5,2.5741607]
[1768403423167,0.75054444,941.59,939.5,2.5741607]
[1768403423468,0.75054444,941.58,939.52,2.5741607]
[1768403423664,0.75054444,941.57,939.52,2.5741607]
[1768403423867,0.75054444,941.56,939.52,2.5741607]
[1768403424062,0.75054444,941.55,939.52,2.5741607]
[1768403424269,0.75054444,941.54,939.52,2.5741607]
[1768403424464,0.75054444,941.53,939.53,2.5741607]
[1768403424668,0.75054444,941.52,939.53,2.5741607]
[1768403424864,0.75054444,941.51,939.53,2.5741607]
[1768403425065,0.75054444,941.5,939.46,2.5741607]
[1768403425264,0.75054444,941.49,939.46,2.5741607]
[1768403425466,0.75054444,941.48,939.46,2.5741607]
[1768403425665,0.75054444,941.47,939.46,2.5741607]
[1768403425869,0.75054444,941.46,939.46,2.5741607]
[1768403426070,0.75054444,941.45,939.46,2.5741607]
[1768403426271,0.75054444,941.44,939.46,2.5741607]
[1768403426471,0.75183119,941.43,939.46,2.5741607]
[1768403426671,0.75183119,941.42,939.55,2.5741607]
[1768403426868,0.75183119,941.41,939.55,2.5741607]
[1768403427069,0.75183119,941.4,939.55,2.5741607]
[1768403427369,0.75183119,941.39,939.55,2.5741607]
[1768403427669,0.75183119,941.38,939.56,2.5741607]
[1768403427968,0.75183119,941.37,939.56,2.5741607]
[1768403428168,0.75183119,941.36,939.56,2.5741607]
[1768403428371,0.75183119,941.35,939.56,2.5741607]
[1768403428567,0.75183119,941.34,939.56,2.5741607]
[1768403428773,0.75183119,941.33,939.58,2.5741607]
[1768403428974,0.75183119,941.32,939.58,2.5741607]
[1768403429273,0.75183119,941.31,939.57,2.5741607]
[1768403429474,0.75183119,941.3,939.57,2.5741607]
[1768403429675,0.75183119,941.29,939.54,2.5741607]
[1768403429876,0.75183119,941.28,939.54,2.5741607]
[1768403430076,0.75183119,941.27,939.54,2.5741607]
[1768403430376,0.75183119,941.26,939.54,2.5741607]
[1768403430671,0.75183119,941.25,939.56,2.5741607]
[1768403430871,0.75183119,941.24,939.56,2.5741607]
[1768403431175,0.75183119,941.23,939.56,2.5741607]
[1768403431476,0.75183119,941.22,939.56,2.5741607]
[1768403431777,0.75183119,941.22,939.58,2.5741607]
[1768403431977,0.00859348,942.17,939.58,2.5741607]
[1768403432277,0.00859348,942.17,939.61,2.5741607]
[1768403432477,1.87,942.24,939.61,2.5741607]
[1768403432975,1.87,942.24,939.7,2.5741607]
[1768403433374,0.7536415,942.23,939.69,2.5741607]
[1768403433574,0.7536415,942.22,939.58,2.5741607]
[1768403433778,0.7536415,942.21,939.58,2.5741607]
[1768403433975,0.7536415,942.2,939.53,2.5741607]
[1768403434180,0.7536415,942.19,939.53,2.5741607]
[1768403434377,0.7536415,942.18,939.53,2.5741607]
[1768403434577,0.7536415,942.17,939.53,2.5741607]
[1768403434773,0.7536415,942.16,939.53,2.5741607]
[1768403434978,0.7536415,942.15,939.53,2.5741607]
[1768403435174,0.7536415,942.14,939.53,2.5741607]
[1768403435380,0.7536415,942.13,939.53,2.5741607]
[1768403435580,0.7536415,942.12,939.55,2.5741607]
[1768403435780,0.7536415,942.11,939.55,2.5741607]
[1768403435977,0.7536415,942.1,939.55,2.5741607]
[1768403436182,0.7536415,942.09,939.5,2.5741607]
[1768403436382,0.7536415,942.08,939.5,2.5741607]
[1768403436681,0.7536415,942.07,939.52,2.5741607]
[1768403436882,0.7536415,942.06,939.52,2.5741607]
[1768403437181,1.87,942.24,939.55,2.5741607]
[1768403437182,0.7536415,942.05,939.55,2.5741607]
[1768403437381,0.7536415,942.04,939.55,2.5741607]
[1768403437581,0.7536415,942.03,939.55,2.5741607]
[1768403437781,0.7536415,942.02,939.65,2.5741607]
[1768403437978,0.7536415,942.01,939.65,2.5741607]
[1768403438182,0.7536415,942.0,939.71,2.5741607]
[1768403438377,0.7536415,941.99,939.71,2.5741607]
[1768403438581,0.7536415,941.98,939.71,2.5741607]
[1768403438782,0.7536415,941.97,939.89,2.5741607]
[1768403438982,0.7536415,941.96,939.89,2.5741607]
[1768403439182,0.7536415,941.95,939.91,2.5741607]
[1768403439385,0.7536415,941.94,939.91,2.5741607]
[1768403439581,0.7536415,941.93,939.91,2.5741607]
[1768403439880,0.7536415,941.92,939.92,2.5741607]
[1768403440084,0.7536415,941.91,939.92,2.5741607]
[1768403440386,0.7536415,941.9,939.91,2.5741607]
[1768403440581,0.7536415,941.89,939.91,2.5741607]
[1768403440881,0.7536415,941.88,939.91,2.5741607]
[1768403441083,0.7536415,941.87,939.91,2.5741607]
[1768403441283,0.7536415,941.86,939.91,2.5741607]
[1768403441482,0.7536415,941.85,939.91,2.5741607]
[1768403441785,0.7536415,941.84,939.89,2.5741607]
[1768403441987,0.7536415,941.83,939.89,2.5741607]
[1768403442182,0.7536415,941.82,939.89,2.5741607]
[1768403442383,0.7536415,941.81,939.88,2.5741607]
[1768403442583,0.7536415,941.8,939.88,2.5741607]
[1768403442783,0.7536415,941.79,939.83,2.5741607]
[1768403443085,0.7536415,941.78,939.83,2.5741607]
[1768403443283,0.7536415,941.77,939.83,2.5741607]
[1768403443581,0.7536415,941.76,939.83,2.5741607]
[1768403443781,0.7536415,941.75,939.83,2.5741607]
[1768403443982,0.7536415,941.74,939.83,2.5741607]
[1768403444186,0.7536415,941.73,939.83,2.5741607]
[1768403444382,0.7536415,941.72,939.88,2.5741607]
[1768403444586,0.7536415,941.71,939.88,2.5741607]
[1768403444788,0.7536415,941.7,939.88,2.5741607]
[1768403444984,0.7536415,941.69,939.89,2.5741607]
[1768403445189,0.7536415,941.68,939.89,2.5741607]
[1768403445490,0.7536415,941.67,939.91,2.5741607]
[1768403445690,0.7536415,941.66,939.91,2.5741607]
[1768403445890,0.7536415,941.65,939.91,2.5741607]
[1768403446086,0.7536415,941.64,939.99,2.5741607]
[1768403446286,0.7536415,941.63,939.99,2.5741607]
[1768403446486,0.7536415,941.62,940.04,2.5741607]
[1768403446687,0.7536415,941.61,940.04,2.5741607]
[1768403446889,1.87,942.24,940.04,2.5741607]
[1768403446890,0.7536415,941.6,940.04,2.5741607]
[1768403447088,0.7536415,941.59,940.04,2.5741607]
[1768403447285,0.7536415,941.58,940.04,2.5741607]
[1768403447585,0.7536415,941.57,940.09,2.5741607]
[1768403447789,0.7535428,941.56,940.09,2.5741607]
[1768403447988,0.7535428,941.55,940.1,2.5741607]
[1768403448189,0.7535428,941.54,940.1,2.5741607]
[1768403448390,0.00945452,942.53,940.1,2.5741607]
[1768403448589,0.75318727,942.52,940.16,2.5741607]
[1768403448787,0.75318727,942.51,940.16,2.5741607]
[1768403449088,0.75318727,942.5,940.21,2.5741607]
[1768403449390,0.1847943,942.77,940.21,2.5741607]
[1768403449686,0.75270974,942.76,940.21,2.5741607]
[1768403449891,0.75270974,942.75,940.21,2.5741607]
[1768403450187,0.75270974,942.74,940.3,2.5741607]
[1768403450386,0.75270974,942.73,940.3,2.5741607]
[1768403450590,0.75270974,942.72,940.3,2.5741607]
[1768403450786,0.75270974,942.71,940.3,2.5741607]
[1768403451091,0.75270974,942.7,940.3,2.5741607]
[1768403451289,0.75270974,942.69,940.26,2.5741607]
[1768403451589,0.75270974,942.68,940.26,2.5741607]
[1768403451786,1.769,942.71,940.25,2.5741607]
[1768403452188,1.769,942.71,940.22,2.5741607]
[1768403452694,1.769,942.71,940.24,2.5741607]
[1768403453193,1.769,942.71,940.22,2.5741607]
[1768403453794,1.769,942.71,940.29,2.5741607]
[1768403455296,1.769,942.71,940.27,2.5741607]
[1768403455793,1.769,942.71,940.28,2.5741607]
[1768403456396,1.769,942.71,940.29,2.5741607]
[1768403456897,1.769,942.71,940.49,2.5741607]
[1768403457393,1.769,942.71,940.46,2.5741607]
[1768403457893,1.769,942.71,940.43,2.5741607]
[1768403458493,1.769,942.71,940.28,2.5741607]
[1768403458996,1.769,942.71,940.2,2.5741607]
[1768403459397,1.769,942.71,940.06,2.5741607]
[1768403460197,1.769,942.71,940.05,2.5741607]
[1768403460494,1.769,942.71,939.98,2.5741607]
[1768403461494,1.769,942.71,940.03,2.5741607]
[1768403462097,1.769,942.71,940.06,2.5741607]
[1768403462494,1.769,942.71,940.2,2.5741607]
[1768403464095,1.769,942.71,940.17,2.5741607]
[1768403464598,1.769,942.71,940.12,2.5741607]
[1768403465198,1.769,942.71,940.14,2.5741607]
[1768403465700,1.769,942.71,940.17,2.5741607]
[1768403466301,1.769,942.71,940.23,2.5741607]
[1768403467301,1.769,942.71,940.2,2.5741607]
[1768403467797,1.769,942.71,940.13,2.5741607]
[1768403468398,1.769,942.71,940.2,2.5741607]
[1768403468799,1.769,942.71,940.18,2.5741607]
[1768403469403,1.769,942.71,940.12,2.5741607]
[1768403470002,1.769,942.71,940.11,2.5741607]
[1768403470599,1.769,942.71,940.12,2.5741607]
[1768403471603,1.769,942.71,940.1,2.5741607]
[1768403471998,1.769,942.71,940.04,2.5741607]
[1768403472701,1.769,942.71,940.05,2.5741607]
[1768403473204,1.769,942.71,940.01,2.5741607]
[1768403473502,1.769,942.71,939.91,2.5741607]
[1768403474607,1.769,942.71,939.98,2.5741607]
[1768403475102,1.769,942.71,940.04,2.5741607]
[1768403475607,1.769,942.71,940.08,2.5741607]
[1768403476606,1.769,942.71,940.09,2.5741607]
[1768403477112,1.769,942.71,940.1,2.5741607]
[1768403477611,1.769,942.71,940.11,2.5741607]
[1768403478711,1.769,942.71,940.12,2.5741607]
[1768403479214,1.769,942.71,940.14,2.5741607]
[1768403479812,1.769,942.71,940.15,2.5741607]
[1768403480314,1.769,942.71,940.17,2.5741607]
[1768403480719,1.769,942.71,940.22,2.5741607]
[1768403481422,1.769,942.71,940.35,2.5741607]
[1768403481816,1.769,942.71,940.37,2.5741607]
[1768403482316,1.769,942.71,940.43,2.5741607]
[1768403482820,1.769,942.71,940.42,2.5741607]
[1768403484318,1.769,942.71,940.4,2.5741607]
[1768403484916,1.769,942.71,940.36,2.5741607]
[1768403485523,1.769,942.71,940.33,2.5741607]
[1768403486423,1.769,942.71,940.36,2.5741607]
[1768403486920,1.769,942.71,940.45,2.5741607]
[1768403487523,1.769,942.71,940.47,2.5741607]
[1768403488524,1.769,942.71,940.13,3.6689282]
[1768403488525,1.769,942.71,940.5,2.5741607]
[1768403489221,1.769,942.71,940.68,2.5741607]
[1768403489521,1.769,942.71,940.81,2.5741607]
[1768403490024,1.769,942.71,940.91,2.5741607]
[1768403491726,1.769,942.71,940.9,2.5741607]
[1768403493126,1.769,942.71,940.79,2.5741607]
[1768403493324,1.769,942.71,940.69,2.5741607]
[1768403494321,1.769,942.71,940.68,2.5741607]
[1768403495526,1.769,942.71,940.72,2.5741607]
[1768403496023,1.769,942.71,940.73,2.5741607]
[1768403496527,1.769,942.71,939.84,5.241326]
[1768403496528,1.769,942.71,940.79,2.5741607]
[1768403497628,1.769,942.71,940.8,2.5741607]
[1768403498024,1.769,942.71,940.82,2.5741607]
[1768403498326,0.18464134,943.48,940.82,2.5741607]
[1768403499222,0.18464134,943.48,940.84,2.5741607]
[1768403499726,0.18464134,943.48,940.83,2.5741607]
[1768403500223,0.18464134,943.48,940.94,2.5741607]
[1768403500627,1.573,943.47,940.86,2.5741607]
[1768403501128,1.573,943.47,940.85,2.5741607]
[1768403502129,1.573,943.47,940.84,2.5741607]
[1768403503426,1.573,943.47,940.85,2.5741607]
[1768403503730,1.573,943.47,940.84,2.5741607]
[1768403504225,1.573,943.47,940.86,2.5741607]
[1768403505428,1.573,943.47,940.93,2.5741607]
[1768403506334,1.573,943.47,941.16,2.5741607]
[1768403506829,1.573,943.47,941.29,2.5741607]
[1768403507634,1.573,943.47,941.59,2.5741607]
[1768403507833,1.573,943.47,942.07,2.5741607]
[1768403508630,1.573,943.47,942.38,2.5741607]
[1768403509134,1.573,943.47,942.09,2.5741607]
[1768403509436,1.573,943.47,941.99,2.5741607]
[1768403509736,1.573,943.47,941.87,2.5741607]
[1768403510237,1.573,943.47,941.84,2.5741607]
[1768403510833,1.573,943.47,941.68,2.5741607]
[1768403511333,1.573,943.47,941.54,2.5741607]
[1768403511834,1.573,943.47,941.42,2.5741607]
[1768403512134,1.573,943.47,941.17,2.5741607]
[1768403512740,1.573,943.47,941.08,2.5741607]
[1768403513336,1.573,943.47,940.98,2.5741607]
[1768403513737,1.573,943.47,940.99,2.5741607]
[1768403514239,1.573,943.47,941.0,2.5741607]
[1768403514737,1.573,943.47,941.08,2.5741607]
[1768403515240,1.573,943.47,941.07,2.5741607]
[1768403515939,1.573,943.47,941.08,2.5741607]
[1768403516338,1.573,943.47,941.13,2.5741607]
[1768403516836,1.573,943.47,941.19,2.5741607]
[1768403517338,1.573,943.47,941.2,2.5741607]
[1768403517941,1.573,943.47,941.19,2.5741607]
[1768403518942,1.573,943.47,941.16,2.5741607]
[1768403519442,1.573,943.47,941.17,2.5741607]
[1768403520042,1.573,943.47,941.21,2.5741607]
[1768403520442,1.573,943.47,941.22,2.5741607]
[1768403522642,1.573,943.47,941.49,2.5741607]
[1768403523044,1.573,943.47,941.51,2.5741607]
[1768403523746,1.573,943.47,941.25,2.5741607]
[1768403524842,1.573,943.47,941.24,2.5741607]
[1768403525143,1.573,943.47,941.25,2.5741607]
[1768403525845,1.573,943.47,941.33,2.5741607]
[1768403526243,1.573,943.47,941.39,2.5741607]
[1768403527343,1.573,943.47,941.48,2.5741607]
[1768403527846,1.573,943.47,941.54,2.5741607]
[1768403528246,1.573,943.47,941.74,2.5741607]
[1768403528841,1.573,943.47,941.72,2.5741607]
[1768403529344,1.573,943.47,941.73,2.5741607]
[1768403529846,1.573,943.47,941.81,2.5741607]
[1768403530346,1.573,943.47,941.47,3.6689282]
[1768403530347,1.573,943.47,942.06,2.5741607]
[1768403530950,1.573,943.47,942.1,2.5741607]
[1768403531450,1.573,943.47,942.08,2.5741607]
[1768403532050,1.573,943.47,942.09,2.5741607]
[1768403532452,1.573,943.47,942.11,2.5741607]
[1768403532648,0.00813212,944.42,942.11,2.5741607]
[1768403533148,0.1843484,945.38,942.11,2.5741607]
[1768403533352,0.74174365,945.37,942.11,2.5741607]
[1768403533547,0.75355634,945.36,942.1,2.5741607]
[1768403533747,0.74174365,945.35,942.1,2.5741607]
[1768403534051,0.74174365,945.34,942.1,2.5741607]
[1768403534248,0.74174365,945.33,942.1,2.5741607]
[1768403534548,0.1843484,945.38,941.76,3.6689282]
[1768403534549,0.74174365,945.32,942.09,2.5741607]
[1768403534851,0.74174365,945.31,942.09,2.5741607]
[1768403535053,0.74174365,945.3,942.09,2.5741607]
[1768403535352,0.74174365,945.29,942.09,2.5741607]
[1768403535552,0.74174365,945.28,942.11,2.5741607]
[1768403535752,0.74174365,945.27,942.11,2.5741607]
[1768403535951,0.74174365,945.26,942.11,2.5741607]
[1768403536152,0.74174365,945.25,942.11,2.5741607]
[1768403536346,0.74174365,945.24,942.11,2.5741607]
[1768403536550,0.74174365,945.23,942.11,2.5741607]
[1768403536751,0.74174365,945.22,942.12,2.5741607]
[1768403536952,0.74174365,945.21,942.12,2.5741607]
[1768403537252,0.74174365,945.2,942.12,2.5741607]
[1768403537452,0.74174365,945.19,942.12,2.5741607]
[1768403537752,0.74174365,945.18,942.11,2.5741607]
[1768403537952,0.74174365,945.17,942.11,2.5741607]
[1768403538154,0.74174365,945.16,942.12,2.5741607]
[1768403538350,0.74174365,945.15,942.12,2.5741607]
[1768403538553,0.74174365,945.14,942.12,2.5741607]
[1768403538749,0.74174365,945.13,942.1,2.5741607]
[1768403539054,1.809,945.29,942.1,2.5741607]
[1768403539055,0.74174365,945.12,942.1,2.5741607]
[1768403539250,0.74174365,945.11,942.11,2.5741607]
[1768403539449,0.74174365,945.1,942.11,2.5741607]
[1768403539653,0.74174365,945.09,942.11,2.5741607]
[1768403539850,0.74174365,945.08,942.11,2.5741607]
[1768403540052,0.74174365,945.07,942.11,2.5741607]
[1768403540252,0.74174365,945.06,942.11,2.5741607]
[1768403540456,0.74174365,945.05,942.12,2.5741607]
[1768403540754,0.74174365,945.04,942.12,2.5741607]